Workbook

Sheet JUNIOR I
A1: 6. ročník Poháru města Příbrami
A2: závod Českého poháru - PROSPECT CUP
A3: Příbram 22. 10. 2016
A5: JUNIOR I
A7: Poř. | B7: ODDÍL | E7: FLOOR | J7: TUMBLING | O7: TRAMPETTE | R7: Celkem
C8: D | D8: E | E8: C | F8: PEN | G8: TOTAL | H8: D | I8: E | J8: C | K8: PEN | L8: TOTAL | M8: D | N8: E | O8: C | P8: PEN | Q8: TOTAL
A9: 1 | B9: 7 TJ CHROPYNĚ | C9: 3.4 | D9: 7.4 | E9: 3.65 | G9: =C9+D9+E9-F9 -> 14.45 | H9: 4.3 | I9: 7.25 | J9: 2 | L9: =H9+I9+J9-K9 -> 13.55 | M9: 3.5 | N9: 7.9 | O9: 2 | Q9: =M9+N9+O9-P9 -> 13.4 | R9: =G9+L9+Q9 -> 41.4
A10: 2 | B10: 8 SPARTAK TRUTNOV A | C10: 3 | D10: 7.7 | E10: 3.7 | G10: 14.4 | H10: 4 | I10: 7.65 | J10: 1.6 | L10: 13.25 | M10: 3.3 | N10: 7.5 | O10: 2 | Q10: 12.8 | R10: 40.45
A11: 3 | B11: 10 FLIK - FLAK PLZEŇ A | C11: 3.5 | D11: 7 | E11: 3.45 | G11: 13.95 | H11: 3.4 | I11: 8.1 | J11: 2 | L11: 13.5 | M11: 3.1 | N11: 7.25 | O11: 2 | Q11: 12.35 | R11: 39.8
A12: 4 | B12: 6 TJ SOKOL PŘÍBRAM - dívky | C12: 2.8 | D12: 6.45 | E12: 3.6 | G12: 12.85 | H12: 2.8 | I12: 7.65 | J12: 1.7 | L12: 12.15 | M12: 2.8 | N12: 7.35 | O12: 2 | Q12: 12.15 | R12: 37.15
A13: 5 | B13: 12 GYM CLUB TŘEBÍČ | C13: 2.3 | D13: 6.25 | E13: 3.35 | G13: 11.9 | H13: 3.5 | I13: 6.6 | J13: 1.8 | L13: 11.9 | M13: 2.8 | N13: 7.45 | O13: 2 | Q13: 12.25 | R13: 36.05
A14: 6 | B14: 3 FLIK - FLAK PLZEŇ B | C14: 2.4 | D14: 5.4 | E14: 3.1 | G14: 10.9 | H14: 2.9 | I14: 7.65 | J14: 2 | L14: 12.55 | M14: 2.8 | N14: 7.2 | O14: 2 | Q14: 12 | R14: 35.45
A15: 7 | B15: 18 SOKOL ŘEPORYJE | C15: 2.1 | D15: 5.6 | E15: 3.35 | G15: 11.05 | H15: 3 | I15: 6.55 | J15: 1.9 | L15: 11.45 | M15: 3.1 | N15: 7.3 | O15: 2 | Q15: 12.4 | R15: 34.9
A16: 8 | B16: 1 TJ SOKOL ŘEPY ŽELVIČKY | C16: 2.5 | D16: 6.15 | E16: 2.95 | G16: 11.6 | H16: 2.7 | I16: 5.95 | J16: 1.5 | L16: 10.15 | M16: 2.8 | N16: 6.5 | O16: 2 | Q16: 11.3 | R16: 33.05
A17: 9 | B17: 11 SPARTAK TRUTNOV B | C17: 1.9 | D17: 4.95 | E17: 3.25 | G17: 10.1 | H17: 2.4 | I17: 7.3 | J17: 2 | L17: 11.7 | M17: 2.9 | N17: 5.85 | O17: 2 | Q17: 10.75 | R17: 32.55
A18: 10 | B18: 2 TJ SOKOL PŘÍBRAM - chlapci | C18: 2.4 | D18: 3.3 | E18: 2.9 | F18: 0.3 | G18: 8.3 | H18: 2.2 | I18: 7.85 | J18: 1.6 | L18: 11.65 | M18: 2.9 | N18: 7.15 | O18: 2 | Q18: 12.05 | R18: 32
A19: 11 | B19: 9 SK SPV KLÁŠTEREC ŽABIČKY | C19: 2.3 | D19: 5.25 | E19: 3.25 | F19: 0.3 | G19: 10.5 | H19: 2.5 | I19: 5.6 | J19: 1.1 | L19: 9.2 | M19: 2.7 | N19: 7.35 | O19: 2 | Q19: 12.05 | R19: 31.75
A20: 12 | B20: 4 KG BĚLÁ POD BEZDĚZEM | C20: 1.9 | D20: 4.75 | E20: 3 | G20: 9.65 | H20: 2 | I20: 5.85 | J20: 1.4 | L20: 9.25 | M20: 2.8 | N20: 5.3 | O20: 2 | Q20: 10.1 | R20: 29
A21: 13 | B21: 5 SVČ RADOVÁNEK PLZEŇ | C21: 1.9 | D21: 4.15 | E21: 3 | F21: 0.3 | G21: 8.75 | H21: 2.4 | I21: 3.9 | J21: 1.6 | L21: 7.9 | M21: 2.6 | N21: 5.75 | O21: 2 | Q21: 10.35 | R21: 27
B23: floor: | C23: Natálie Navrátilová
B24: tumbling: | C24: Libor Pečenka
B25: trampette: | C25: Eva Šalbabová | H25: Anna Majerová | O25: Lucie Křížková
H26: hlavní rozhodčí | O26: ředitelka závodu

Sheet JUNIOR II
A1: 6. ročník Poháru města Příbrami
A2: závod Českého poháru - PROSPECT CUP
A3: Příbram 22. 10. 2016
A5: JUNIOR II
A7: Poř. | B7: ODDÍL | E7: FLOOR | J7: TUMBLING | O7: TRAMPETTE | R7: Celkem
C8: D | D8: E | E8: C | F8: PEN | G8: TOTAL | H8: D | I8: E | J8: C | K8: PEN | L8: TOTAL | M8: D | N8: E | O8: C | P8: PEN | Q8: TOTAL
A9: 1 | B9: 23 KSG MORAVSKÁ SLAVIA BRNO | C9: 6 | D9: 7.05 | E9: 3.5 | G9: =C9+D9+E9-F9 -> 16.55 | H9: 3.9 | I9: 7.8 | J9: 1.8 | L9: =H9+I9+J9-K9 -> 13.5 | M9: 2.9 | N9: 7.5 | O9: 2 | Q9: =M9+N9+O9-P9 -> 12.4 | R9: =G9+L9+Q9 -> 42.45
A10: 2 | B10: 19 TJ SOKOL PŘÍBRAM - dívky | C10: 6 | D10: 6.8 | E10: 3.6 | G10: 16.4 | H10: 4 | I10: 8.3 | J10: 1.9 | L10: 14.2 | M10: 2.9 | N10: 6.9 | O10: 2 | Q10: 11.8 | R10: 42.4
A11: 3 | B11: 22 TJ CHROPYNĚ | C11: 5.6 | D11: 7.3 | E11: 3.75 | G11: 16.65 | H11: 4.3 | I11: 7 | J11: 1.9 | L11: 13.2 | M11: 3.1 | N11: 6.95 | O11: 1.7 | Q11: 11.75 | R11: 41.6
A12: 4 | B12: 16 GLOXI CLUB TJ SOKOL BEDŘICHOV | C12: 4.9 | D12: 6.05 | E12: 3.35 | G12: 14.3 | H12: 4.6 | I12: 7.9 | J12: 2 | L12: 14.5 | M12: 3.1 | N12: 6.9 | O12: 1.7 | Q12: 11.7 | R12: 40.5
A13: 5 | B13: 21 TJ SOKOL ŘEPY ŽELVIČKY | C13: 4.2 | D13: 6.55 | E13: 3.2 | F13: 0.3 | G13: 13.65 | H13: 3.3 | I13: 7.55 | J13: 1.9 | L13: 12.75 | M13: 2.7 | N13: 6.6 | O13: 2 | Q13: 11.3 | R13: 37.7
A14: 6 | B14: 15 TJ SOKOL PŘÍBRAM - chlapci | C14: 3.8 | D14: 2.2 | E14: 2.9 | G14: 8.9 | H14: 4.6 | I14: 8.05 | J14: 1.8 | L14: 14.45 | M14: 3.3 | N14: 6.3 | O14: 1.8 | Q14: 11.4 | R14: 34.75
A15: 7 | B15: 13 SVČ RADOVÁNEK PLZEŇ | C15: 4.4 | D15: 5.3 | E15: 3.05 | G15: 12.75 | H15: 3.3 | I15: 6.4 | J15: 1.4 | L15: 11.1 | M15: 2.8 | N15: 6.25 | O15: 1.8 | Q15: 10.85 | R15: 34.7
A16: 8 | B16: 17 TJ SOKOL VYŠEHRAD | C16: 3.2 | D16: 2.35 | E16: 3 | G16: 8.55 | H16: 3 | I16: 7.5 | J16: 1.9 | L16: 12.4 | M16: 2.5 | N16: 6.5 | O16: 2 | Q16: 11 | R16: 31.95
A17: 9 | B17: 14 SOKOL RADOTÍN | C17: 3.1 | D17: 3.8 | E17: 2.7 | G17: 9.6 | H17: 2.9 | I17: 6.4 | J17: 1.3 | L17: 10.6 | M17: 2.6 | N17: 6.65 | O17: 1.9 | Q17: 11.15 | R17: 31.35
B19: floor: | C19: Natálie Navrátilová
B20: tumbling: | C20: Libor Pečenka
B21: trampette: | C21: Zuzana Čeledová
H23: Anna Majerová | O23: Lucie Křížková
H24: hlavní rozhodčí | O24: ředitelka závodu

Sheet JUNIOR III
A1: 6. ročník Poháru města Příbrami
A2: závod Českého poháru - PROSPECT CUP
A3: Příbram 22. 10. 2016
A5: JUNIOR III
A7: Poř. | B7: ODDÍL | E7: FLOOR | J7: TUMBLING | O7: TRAMPETTE | R7: Celkem
C8: D | D8: E | E8: C | F8: PEN | G8: TOTAL | H8: D | I8: E | J8: C | K8: PEN | L8: TOTAL | M8: D | N8: E | O8: C | P8: PEN | Q8: TOTAL
A9: 1 | B9: 25 GYM CLUB TŘEBÍČ | C9: 5.9 | D9: 6.35 | E9: 3.6 | G9: =C9+D9+E9-F9 -> 15.85 | H9: 5 | I9: 6.65 | J9: 1.8 | L9: =H9+I9+J9-K9 -> 13.45 | M9: 3.3 | N9: 7.3 | O9: 1.8 | Q9: =M9+N9+O9-P9 -> 12.4 | R9: =G9+L9+Q9 -> 41.7
A10: 2 | B10: 24 TJ SOKOL VYŠEHRAD | C10: 4.9 | D10: 6.5 | E10: 3.8 | G10: =C10+D10+E10-F10 -> 15.2 | H10: 4.6 | I10: 7.7 | J10: 1.8 | L10: =H10+I10+J10-K10 -> 14.1 | M10: 2.9 | N10: 7.35 | O10: 2 | Q10: =M10+N10+O10-P10 -> 12.25 | R10: =G10+L10+Q10 -> 41.55
A11: 3 | B11: 26 SPARTAK TRUTNOV | C11: 4 | D11: 5.95 | E11: 3.6 | G11: =C11+D11+E11-F11 -> 13.55 | H11: 4.9 | I11: 7.1 | J11: 2 | L11: =H11+I11+J11-K11 -> 14 | M11: 3.2 | N11: 7.45 | O11: 2 | Q11: =M11+N11+O11-P11 -> 12.65 | R11: =G11+L11+Q11 -> 40.2
B13: floor: | C13: Natálie Navrátilová
B14: tumbling: | C14: Libor Pečenka
B15: trampette: | C15: Eva Šalbabová
H23: Anna Majerová | O23: Lucie Křížková
H24: hlavní rozhodčí | O24: ředitelka závodu

Sheet JUNIOR IV
A1: 6. ročník Poháru města Příbrami
A2: závod Českého poháru - PROSPECT CUP
A3: Příbram 22. 10. 2016
A5: JUNIOR IV
A7: Poř. | B7: ODDÍL | E7: FLOOR | J7: TUMBLING | O7: TRAMPETTE | R7: Celkem
C8: D | D8: E | E8: C | F8: PEN | G8: TOTAL | H8: D | I8: E | J8: C | K8: PEN | L8: TOTAL | M8: D | N8: E | O8: C | P8: PEN | Q8: TOTAL
A9: 1 | B9: 27 TJ SOKOL PŘÍBRAM | C9: 6.5 | D9: 7 | E9: 3.7 | G9: =C9+D9+E9-F9 -> 17.2 | H9: 4.7 | I9: 7.65 | J9: 1.7 | L9: =H9+I9+J9-K9 -> 14.05 | M9: 3.1 | N9: 7.4 | O9: 2 | Q9: =M9+N9+O9-P9 -> 12.5 | R9: =G9+L9+Q9 -> 43.75
B11: floor: | C11: Natálie Navrátilová
B12: tumbling: | C12: Libor Pečenka
B13: trampette: | C13: Eva Šalbabová
H23: Anna Majerová | O23: Lucie Křížková
H24: hlavní rozhodčí | O24: ředitelka závodu

Sheet SENIOR
A1: 6. ročník Poháru města Příbrami
A2: závod Českého poháru - PROSPECT CUP
A3: Příbram 22. 10. 2016
A5: SENIOR
A7: Poř. | B7: ODDÍL | E7: FLOOR | J7: TUMBLING | O7: TRAMPETTE | R7: Celkem
C8: D | D8: E | E8: C | F8: PEN | G8: TOTAL | H8: D | I8: E | J8: C | K8: PEN | L8: TOTAL | M8: D | N8: E | O8: C | P8: PEN | Q8: TOTAL
A9: 1 | B9: 29 TJ BOHEMIANS PRAHA | C9: 6.6 | D9: 4.8 | E9: 3.5 | G9: =C9+D9+E9-F9 -> 14.9 | H9: 5.7 | I9: 6.9 | J9: 1.8 | L9: =H9+I9+J9-K9 -> 14.4 | M9: 4.2 | N9: 5.9 | O9: 2 | Q9: =M9+N9+O9-P9 -> 12.1 | R9: =G9+L9+Q9 -> 41.4
A10: 2 | B10: 28 TJ SOKOL PŘÍBRAM - MIX | C10: 4.8 | D10: 3.8 | E10: 3.4 | F10: 0.3 | G10: =C10+D10+E10-F10 -> 11.7 | H10: 4.7 | I10: 7.75 | J10: 1.2 | K10: 0.3 | L10: =H10+I10+J10-K10 -> 13.35 | M10: 3.6 | N10: 6.2 | O10: 1.1 | P10: 0.3 | Q10: =M10+N10+O10-P10 -> 10.6 | R10: =G10+L10+Q10 -> 35.65
B12: floor: | C12: Natálie Navrátilová
B13: tumbling: | C13: Libor Pečenka
B14: trampette: | C14: Eva Šalbabová
H23: Anna Majerová | O23: Lucie Křížková
H24: hlavní rozhodčí | O24: ředitelka závodu

Sheet TRIO JUNIOR
A1: 6. ročník Poháru města Příbrami
A2: závod Českého poháru - PROSPECT CUP
A3: Příbram 22. 10. 2016
A5: TRIO JUNIOR
A7: Poř. | B7: ODDÍL | E7: TUMBLING | J7: TRAMPETTE | M7: Celkem
C8: D | D8: E | E8: C | F8: PEN | G8: TOTAL | H8: D | I8: E | J8: C | K8: PEN | L8: TOTAL
A9: 1 | B9: 30 TJ BOHEMIANS PRAHA - ŽENY | C9: 1.9 | D9: 8.366 | E9: 1.8 | G9: =C9+D9+E9-F9 -> 12.066 | H9: 1.3 | I9: 8.5 | J9: 1.6 | L9: =H9+I9+J9-K9 -> 11.4 | M9: =G9+L9 -> 23.466
A10: 2 | B10: 35 TJ SOKOL PŘÍBRAM - ŽENY A | C10: 1.9 | D10: 7.766 | E10: 1.5 | G10: =C10+D10+E10-F10 -> 11.166 | H10: 1.3 | I10: 8.25 | J10: 1.8 | L10: =H10+I10+J10-K10 -> 11.35 | M10: =G10+L10 -> 22.516
A11: 3 | B11: 33 SPARTAK TRUTNOV - ŽENY | C11: 1.8 | D11: 7.366 | E11: 1.4 | G11: =C11+D11+E11-F11 -> 10.566 | H11: 1.2 | I11: 8.2 | J11: 1.4 | L11: =H11+I11+J11-K11 -> 10.8 | M11: =G11+L11 -> 21.366
A12: 4 | B12: 31 SOKOL ČERNOŠICE - ŽENY | C12: 0.9 | D12: 5.533 | E12: 0.4 | G12: =C12+D12+E12-F12 -> 6.833 | H12: 0.86 | I12: 7.3 | J12: 0.8 | L12: =H12+I12+J12-K12 -> 8.96 | M12: =G12+L12 -> 15.793
A15: Poř. | B15: ODDÍL | E15: TUMBLING | J15: TRAMPETTE | M15: Celkem
C16: D | D16: E | E16: C | F16: PEN | G16: TOTAL | H16: D | I16: E | J16: C | K16: PEN | L16: TOTAL
A17: 1 | B17: 34 DDM KADAŇ - MIX | C17: 1.7 | D17: 7.6 | E17: 1.6 | G17: =C17+D17+E17-F17 -> 10.9 | H17: 1.1 | I17: 7.95 | J17: 1.2 | L17: =H17+I17+J17-K17 -> 10.25 | M17: =G17+L17 -> 21.15
B20: tumbling: | C20: Zuzana Čeledová
B21: trampette: | C21: Libor Pečenka
F23: Anna Majerová | L23: Lucie Křížková
F24: hlavní rozhodčí | L24: ředitelka závodu

Sheet TRIO SENIOR
A1: 6. ročník Poháru města Příbrami
A2: závod Českého poháru - PROSPECT CUP
A3: Příbram 22. 10. 2016
A5: TRIO SENIOR
A7: Poř. | B7: ODDÍL | E7: TUMBLING | J7: TRAMPETTE | M7: Celkem
C8: D | D8: E | E8: C | F8: PEN | G8: TOTAL | H8: D | I8: E | J8: C | K8: PEN | L8: TOTAL
A9: 1 | B9: TJ BOHEMIANS PRAHA - ŽENY A | C9: 2.7 | D9: 8.2 | E9: 2 | G9: =C9+D9+E9-F9 -> 12.9 | H9: 2.4 | I9: 7.3 | J9: 2 | L9: =H9+I9+J9-K9 -> 11.7 | M9: =G9+L9 -> 24.6
A10: 2 | B10: TJ SOKOL PŘÍBRAM - ŽENY B | C10: 2.4 | D10: 7.2 | E10: 1.7 | G10: =C10+D10+E10-F10 -> 11.3 | H10: 2 | I10: 8 | J10: 2 | L10: =H10+I10+J10-K10 -> 12 | M10: =G10+L10 -> 23.3
A13: Poř. | B13: ODDÍL | E13: TUMBLING | J13: TRAMPETTE | M13: Celkem
C14: D | D14: E | E14: C | F14: PEN | G14: TOTAL | H14: D | I14: E | J14: C | K14: PEN | L14: TOTAL
A15: 1 | B15: TJ SOKOL PŘÍBRAM - MUŽI | C15: 2.6 | D15: 7.46 | E15: 1.7 | G15: =C15+D15+E15-F15 -> 11.76 | H15: 3.2 | I15: 8.05 | J15: 2 | L15: =H15+I15+J15-K15 -> 13.25 | M15: =G15+L15 -> 25.01
A16: 2 | B16: SOKOL ČERNOŠICE - MUŽI | C16: 1.5 | D16: 6.8 | E16: 0.5 | G16: =C16+D16+E16-F16 -> 8.8 | H16: 1.1 | I16: 7.3 | J16: 1.2 | L16: =H16+I16+J16-K16 -> 9.6 | M16: =G16+L16 -> 18.4
B19: tumbling: | C19: Zuzana Čeledová
B20: trampette: | C20: Libor Pečenka
F22: Anna Majerová | L22: Lucie Křížková
F23: hlavní rozhodčí | L23: ředitelka závodu
